Cogmind - Beta 11 X5 @@@ ROGUE MODE // 2021.06.23 @ 17:57:10 Player: Luigi Panache Result: Destroyed by G-50 Soldier with Heavy Laser Performance ------------- Evolutions (3) 1500 Regions Visited (8) 1600 Robots Destroyed (105) 525 Value Destroyed (2878) 2878 Prototype IDs (6) 120 Alien Tech Used (0) 0 Bonus (72) 72 TOTAL SCORE: 6695 Bonus ------- High Alert Combat Kills 72 Cogmind --------- Core Integrity 0/700 Matter 92/300 Energy 9/100 System Corruption 10% Temperature Cool (9) Movement Core (150) Ox2 Location -7/Factory Parts ------- > --- POWER (1) -------- (None) > --- PROPULSION (4) --- Cooled VTOL Module > --- UTILITY (6) ------ Structural Scanner Machine Analyzer Advanced Targeting Computer Microactuators System Shield > --- WEAPON (2) ------- Precision Grenade Launcher > --- INVENTORY (5) ---- Armored Wheel High-capacity Matter Pod (200) Advanced Terrain Scan Processor Peak State ------------ > --- POWER ------------ Reinforced Ion Engine > --- PROPULSION ------- Titanium Leg Titanium Leg Titanium Leg Titanium Leg > --- UTILITY ---------- Advanced Heat Sink Huge Storage Unit Machine Analyzer Visual Processing Unit Heavy Armor Plating > --- WEAPON ----------- Cooled Particle Cannon Cooled Particle Cannon > --- INVENTORY -------- Deuterium Engine Armored Wheel Armored Wheel Armored Wheel Armored Wheel High-capacity Matter Pod Structural Scanner Improved Sensor Array Signal Interpreter Advanced Terrain Scan Processor Advanced Terrain Scan Processor Advanced Terrain Scan Processor Advanced Targeting Computer Advanced Targeting Computer Advanced Targeting Computer Hacking Suite System Shield Cooled Particle Cannon Cooled Particle Cannon Heavy Assault Rifle Rocket Launcher Datajack Hammer Katana [Rating: 47] Favorites ----------- Power Ion Engine Engine Ion Engine Power Core Light Nuclear Core Propulsion Wheel Treads Light Treads Leg Titanium Leg Wheel Wheel Flight Unit Cooled VTOL Module Utility Visual Processing Unit Device Advanced Heat Sink Storage High-capacity Storage Unit Processor Visual Processing Unit Hackware System Shield Protection Improved Utility Shielding Weapon Assault Rifle Energy Gun Heavy Particle Gun Energy Cannon Cooled Particle Cannon Ballistic Gun Assault Rifle Launcher Rocket Launcher Impact Weapon Hammer Build | -11 -10 -10 -9 -9 -9 -8 -8 -7 ------- Run | Scr Mat Min Mat Min Exi Min Mat Fac Slots Evolved 6 | . . . 2 . . . 2 2 Power . | . . . . . . . . . Propulsion 2 | . . . 1 . . . . 1 Utility 4 | . . . 1 . . . 2 1 Weapon . | . . . . . . . . . Parts Attached 89 | 2 9 . 11 4 . 11 27 25 Power 9 | . 4 . 1 . . 1 2 1 Engine 8 | . 4 . 1 . . 1 1 1 Core 1 | . . . . . . . 1 . Reactor . | . . . . . . . . . Propulsion 29 | 2 1 . 4 . . 4 10 8 Treads 5 | 2 . . 1 . . . 2 . Leg 9 | . . . . . . 1 4 4 Wheel 14 | . 1 . 3 . . 3 4 3 Hover . | . . . . . . . . . Flight 1 | . . . . . . . . 1 Utility 23 | . 2 . 4 . . 2 6 9 Device 6 | . . . 1 . . . 2 3 Storage 3 | . 1 . 1 . . 1 . . Processor 5 | . 1 . 1 . . . . 3 Hackware 3 | . . . . . . . . 3 Protection 6 | . . . 1 . . 1 4 . Artifact . | . . . . . . . . . Weapon 28 | . 2 . 2 4 . 4 9 7 Energy Gun 4 | . . . 2 . . . 2 . Energy Cannon 5 | . . . . . . . 2 3 Ballistic Gun 11 | . 2 . . 3 . 3 3 . Ballistic Cannon . | . . . . . . . . . Launcher 7 | . . . . 1 . 1 2 3 Special Weapon . | . . . . . . . . . Impact Weapon 1 | . . . . . . . . 1 Slashing Weapon . | . . . . . . . . . Piercing Weapon . | . . . . . . . . . Special Melee Weapon . | . . . . . . . . . Unidentified Prototypes 4 | . . . 1 . . . 1 2 Parts Lost 45 | . 3 . . 3 . 3 18 18 Power 6 | . 1 . . . . 1 2 2 Propulsion 17 | . 1 . . 2 . 1 7 6 Utility 9 | . . . . 1 . . 3 5 Weapon 13 | . 1 . . . . 1 6 5 Highest Loss Streak 13 | . 1 . . 2 . 2 10 13 Average Slot Usage (%) 91 | . 97 100 97 93 66 89 91 89 Engine 9 | . 14 14 11 11 11 9 5 6 Treads 8 | . 25 14 5 . . . 2 . Leg 6 | . . . . . . . 7 26 Wheel 10 | . 2 14 25 29 11 24 12 . Device 4 | . . . 7 . . . 10 9 Storage 10 | . 14 14 11 11 11 11 9 6 Processor 12 | . 12 14 11 11 11 11 9 17 Protection 5 | . . . 3 7 . 10 12 4 Energy Gun 2 | . 4 . 6 3 . . 3 . Energy Cannon 3 | . . . . . . . 7 10 Ballistic Gun 14 | . 23 28 15 18 22 21 7 . Naked Turns . | . . . . . . . . . Heaviest Build 120 | 14 49 48 51 51 47 89 119 120 Greatest Support 69 | 40 40 16 30 30 10 30 51 69 Greatest Overweight (x) 10 | . 2 2 2 4 4 4 10 1 Average Overweight (x) 1 | . 1 2 1 1 4 2 3 . Largest Inventory Capacity 25 | 8 20 20 20 20 20 25 25 25 Average Capacity 20 | 8 16 20 20 20 20 22 25 23 Most Carried 25 | 7 20 20 20 20 20 20 25 25 Average Carried 18 | 6 11 19 19 20 20 18 23 21 Final Capacity 25 | 8 20 20 20 20 20 25 25 5 Final Carried 23 | 6 20 20 20 20 20 19 23 3 Class Distribution -------------------- 89% | Mutant 9% | Scavenger-Mutant Dominant Class ---------------- Mutant | -10/Materials Mutant | -10/Mines Mutant | -9/Materials Mutant | -9/Mines Mutant | -9/Exiles Mutant | -8/Mines Mutant | -8/Materials Mutant | -7/Factory Resources | -11 -10 -10 -9 -9 -9 -8 -8 -7 ----------- Run | Scr Mat Min Mat Min Exi Min Mat Fac Matter Collected 2106 | 217 442 78 134 222 . 276 525 212 Remotely . | . . . . . . . . . Salvage Created 3206 | . 767 132 89 430 . 332 944 512 Parts 209 | . 49 11 7 36 . 28 53 25 Haulers Intercepted 3 | . 2 . . . . . 1 . Recyclers Shooed 3 | . . . . 1 . . 2 . Parts Field Recycled . | . . . . . . . . . Retrieved Matter . | . . . . . . . . . Parts Self-Destructed . | . . . . . . . . . Prevented . | . . . . . . . . . Kills | -11 -10 -10 -9 -9 -9 -8 -8 -7 ------- Run | Scr Mat Min Mat Min Exi Min Mat Fac Combat Hostiles Destroyed 76 | . 15 6 1 15 . 7 13 19 Guns 46 | . 15 6 1 11 . 5 8 . Cannons 2 | . . . . . . . 1 1 AOE 27 | . . . . 4 . 2 4 17 Classes Destroyed 13 | . 6 . 2 2 . 1 1 1 Worker 9 | . 1 . . . . 4 2 2 Builder 6 | . . . . . . 3 3 . Tunneler 1 | . . . . . . . . 1 Hauler 3 | . 2 . . . . . 1 . Recycler 2 | . . . . . . . 2 . Mechanic 1 | . . . 1 . . . . . Operator 3 | . 3 . . . . . . . Watcher 4 | . 1 . . . . . 2 1 Swarmer 26 | . 3 5 . 7 . 3 . 8 Grunt 39 | . 12 1 . 6 . 3 8 9 Brawler 3 | . . . . 1 . . 1 1 Duelist 3 | . . . . 1 . 1 . 1 Sentry 5 | . . . 1 . . . 4 . Best Kill Streak 8 | . 5 3 1 7 . 6 4 8 Combat Bots Only 8 | . 5 3 1 7 . 3 4 8 Max Kills in Single Turn 3 | . 2 1 1 2 . 1 1 3 Gunslinging 1 | . 1 . . 1 . . . . Exploded 2 | . . . . 2 . 1 1 2 Melee . | . . . . . . . . . Uniques/NPCs Destroyed . | . . . . . . . . . Combat | -11 -10 -10 -9 -9 -9 -8 -8 -7 -------- Run | Scr Mat Min Mat Min Exi Min Mat Fac Damage Taken 6354 | . 692 163 70 502 . 402 1552 2973 Core 1420 | . 133 29 16 121 . 61 351 709 Absorbed by Shields . | . . . . . . . . . Core Remaining (%) 55 | 100 . 35 . . . 50 36 . Volleys Fired 280 | . 84 19 5 26 . 31 77 38 Largest 2 | . 2 2 2 2 . 2 2 2 Hottest 110 | . 60 40 110 110 . 40 93 93 Shots Fired 505 | . 164 38 10 50 . 59 140 44 Gun 441 | . 164 38 10 48 . 57 124 . Cannon 32 | . . . . . . . 11 21 Launcher 32 | . . . . 2 . 2 5 23 Special . | . . . . . . . . . Kinetic 327 | . 115 38 4 26 . 57 87 . Thermal 77 | . . . 6 22 . . 38 11 Explosive 32 | . . . . 2 . 2 5 23 Electromagnetic 69 | . 49 . . . . . 10 10 Robot Hit Streak 10 | . 10 4 4 9 . 6 6 8 Robot Miss Streak 8 | . 8 4 2 3 . 4 5 3 Penetration Max . | . . . . . . . . . Secondary Targets 9 | . 3 . . 4 . 1 1 . Max Gunslinging Chain 1 | . 1 . . 1 . 1 1 . Shots Hit Robots 294 | . 96 19 7 34 . 35 76 27 Core Hits 171 | . 33 9 5 22 . 21 37 44 Critical Kills 1 | . . . . . . . 1 . Critical Parts Destroyed 1 | . . . . . . . 1 . Critical Strikes 8 | . 2 . . 1 . . 5 . Burn 4 | . . . . 1 . . 3 . Destroy 2 | . . . . . . . 2 . Corrupt 2 | . 2 . . . . . . . Melee Attacks 3 | . . . . . . . . 3 Impact 3 | . . . . . . . . 3 Slashing . | . . . . . . . . . Piercing . | . . . . . . . . . Sneak Attacks . | . . . . . . . . . Combat Hostiles . | . . . . . . . . . Follow-up Attacks . | . . . . . . . . . Damage Inflicted 7327 | . 1220 201 103 713 . 614 1879 2597 Guns 3497 | . 1210 201 103 517 . 408 1058 . Cannons 672 | . . . . . . . 217 455 Explosions 3110 | . . . . 186 . 206 593 2125 Melee . | . . . . . . . . . Ramming 48 | . 10 . . 10 . . 11 17 Kinetic 2306 | . 814 201 31 266 . 408 586 . Thermal 1616 | . . . 72 251 . . 845 448 Explosive 2561 | . . . . 186 . 206 248 1921 Electromagnetic 796 | . 396 . . . . . 189 211 Impact . | . . . . . . . . . Slashing . | . . . . . . . . . Piercing . | . . . . . . . . . Highest Corruption 10 | . 2 2 . . . . . 10 Average Corruption 3 | . 2 2 . . . . . 9 Corruption Purged . | . . . . . . . . . Effects 5 | . 1 . . . . . . 4 Message Errors 1 | . . . . . . . . 1 Energy Discharges 1 | . 1 . . . . . . . Data Loss (minor) 1 | . . . . . . . . 1 Data Loss (major) 1 | . . . . . . . . 1 Misdirections 1 | . . . . . . . . 1 Overload Shots . | . . . . . . . . . Overflow Damage 245 | . . . . . . . 199 46 Projectiles 23 | . . . . . . . 23 . Explosions 222 | . . . . . . . 176 46 Melee . | . . . . . . . . . Knockbacks . | . . . . . . . . . Impact . | . . . . . . . . . Kinetic . | . . . . . . . . . Secondary . | . . . . . . . . . Self-Inflicted Damage 517 | . . . . 52 . 25 235 205 Shots 15 | . . . . 1 . 2 5 7 Rammed 6 | . 4 . . 2 . . . . Targets Rammed 8 | . 4 . . 2 . . 1 1 Kicked 2 | . . . . . . . 1 1 Crushed . | . . . . . . . . . Highest Temperature 240 | . 87 9 153 240 . 11 . 30 Average Temperature 55 | . 33 9 83 114 . 7 . 8 Received Heat Transfer 2091 | . 363 36 51 150 . 81 684 726 Effects 3 | . . . . 3 . . . . Interference 3 | . . . . 3 . . . . Siege Activations . | . . . . . . . . . Robots Corrupted 1 | . . . . . . . . 1 Combat Hostiles 1 | . . . . . . . . 1 Parts Fried 4 | . 1 . . . . . 3 . Impact Corruptions . | . . . . . . . . . Robots Melted . | . . . . . . . . . Combat Hostiles . | . . . . . . . . . Parts Melted 5 | . . . . 1 . . 4 . Heat Transferred 2513 | . . . 148 555 . . 1384 426 Parts Sabotaged . | . . . . . . . . . Parts Stolen . | . . . . . . . . . Parts Stripped . | . . . . . . . . . Power Chain Reactions 2 | . . . . . . . . 2 Missiles Intercepted . | . . . . . . . . . Alert | -11 -10 -10 -9 -9 -9 -8 -8 -7 ------- Run | Scr Mat Min Mat Min Exi Min Mat Fac Peak Influence 839 | . 222 223 166 414 . 170 316 839 Initial 86 | . . 13 86 64 . . 31 78 Average 163 | . 50 125 104 284 . 79 177 349 Maximum Alert Level 3 | . 1 1 . 2 . . 1 3 Low Security (%) 70 | 100 98 83 100 20 . 100 71 16 Level 1 21 | . 1 16 . 64 . . 28 49 Level 2 6 | . . . . 14 . . . 31 Level 3 . | . . . . . . . . 2 Level 4 . | . . . . . . . . . Level 5 . | . . . . . . . . . High Security . | . . . . . . . . . Max Security . | . . . . . . . . . Squads Dispatched 11 | . 5 1 . . . . 1 4 Investigation 4 | . 2 1 . . . . . 1 Extermination 1 | . . . . . . . . 1 Reinforcement 5 | . 3 . . . . . 1 1 Assault 1 | . . . . . . . . 1 Garrison . | . . . . . . . . . Intercept . | . . . . . . . . . Construction Impeded . | . . . . . . . . . Haulers Reinforced . | . . . . . . . . . Cargo Convoy Interrupts 1 | . . . . . . . . 1 Stealth | -11 -10 -10 -9 -9 -9 -8 -8 -7 --------- Run | Scr Mat Min Mat Min Exi Min Mat Fac Distress Signals 4 | . 2 . 1 . . . . 1 Communications Jammed . | . . . . . . . . . Distress Signals . | . . . . . . . . . Times Spotted 140 | . 31 9 5 15 . 9 23 48 Peak Tracking Total 17 | . 4 3 2 4 . 3 6 17 Tactical Retreats 9 | . 1 2 . . . 1 3 2 Traps | -11 -10 -10 -9 -9 -9 -8 -8 -7 ------- Run | Scr Mat Min Mat Min Exi Min Mat Fac Traps Triggered 2 | . 1 . . . . . 1 . Indirectly . | . . . . . . . . . Trap Hack Attempts . | . . . . . . . . . Triggered . | . . . . . . . . . Disarmed . | . . . . . . . . . Reprogrammed . | . . . . . . . . . Reused . | . . . . . . . . . Traps Extracted . | . . . . . . . . . Installed . | . . . . . . . . . Triggered 1 | . . . . . . . 1 . Machines | -11 -10 -10 -9 -9 -9 -8 -8 -7 ---------- Run | Scr Mat Min Mat Min Exi Min Mat Fac Machines Disabled 13 | . . . . 1 . 1 8 3 Max in Single Turn 2 | . . . . 1 . 1 2 2 Machines Sabotaged . | . . . . . . . . . Garrisons Compromised . | . . . . . . . . . Overloaded Fab Kills . | . . . . . . . . . Fab Network Shutdowns . | . . . . . . . . . Hacking | -11 -10 -10 -9 -9 -9 -8 -8 -7 --------- Run | Scr Mat Min Mat Min Exi Min Mat Fac Machines Accessed 12 | . 5 1 2 . . . 2 2 Terminals 7 | . 3 . 1 . . . 2 1 Fabricators . | . . . . . . . . . Repair Stations 2 | . . . 1 . . . . 1 Recycling Units 2 | . 2 . . . . . . . Scanalyzers . | . . . . . . . . . Garrison Access . | . . . . . . . . . Total Hacks 29 | . 10 1 10 . . . 2 6 Successful 15 | . 7 1 4 . . . . 3 Failed 14 | . 3 . 6 . . . 2 3 Catastrophic 3 | . . . . . . . 2 1 Database Lockouts . | . . . . . . . . . Manual 12 | . 8 . 2 . . . 2 . Terminals 18 | . 8 . 4 . . . 2 4 Fabricators . | . . . . . . . . . Repair Stations 8 | . . . 6 . . . . 2 Recycling Units 2 | . 2 . . . . . . . Scanalyzers . | . . . . . . . . . Garrison Access . | . . . . . . . . . Terminal Hacks 7 | . 4 1 1 . . . . 1 Part Schematic 1 | . 1 . . . . . . . Prototype ID Bank 1 | . 1 . . . . . . . Open Door 1 | . . 1 . . . . . . Branch Access Points 1 | . . . . . . . . 1 Unreport Threat 1 | . 1 . . . . . . . Hauler Manifests 1 | . . . 1 . . . . . Zone Layout 1 | . 1 . . . . . . . Fabricator Hacks . | . . . . . . . . . Repair Station Hacks 5 | . . . 3 . . . . 2 Scan Component 3 | . . . 2 . . . . 1 Repair 2 | . . . 1 . . . . 1 Recycling Unit Hacks . | . . . . . . . . . Scanalyzer . | . . . . . . . . . Garrison Access Hacks . | . . . . . . . . . Unauthorized Hacks 3 | . 3 . . . . . . . Terminals 1 | . 1 . . . . . . . Operators 1 | . 1 . . . . . . . Fabricators . | . . . . . . . . . Repair Stations . | . . . . . . . . . Recycling Units 2 | . 2 . . . . . . . Tunnel 2 | . 2 . . . . . . . Scanalyzers . | . . . . . . . . . Garrison Access . | . . . . . . . . . Data Cores Recovered . | . . . . . . . . . Used . | . . . . . . . . . Hacking Detections 9 | . 3 . 2 . . . 2 2 Full Trace Events 1 | . . . . . . . . 1 Feedback Events 1 | . . . . . . . . 1 Hackware Fried 1 | . . . . . . . . 1 Feedback Blocked . | . . . . . . . . . Robot Schematics Acquired . | . . . . . . . . . Robots Built . | . . . . . . . . . Matter . | . . . . . . . . . Time . | . . . . . . . . . Total Robot Build Rating . | . . . . . . . . . Part Schematics Acquired 1 | . 1 . . . . . . . Parts Built . | . . . . . . . . . Matter . | . . . . . . . . . Time . | . . . . . . . . . Total Part Build Rating . | . . . . . . . . . Parts Repaired 2 | . . . 1 . . . . 1 Time 64 | . . . 26 . . . . 38 Parts Recycled . | . . . . . . . . . Recycled Matter . | . . . . . . . . . Retrieved Matter . | . . . . . . . . . Retrieved Components . | . . . . . . . . . Parts Scanalyzed . | . . . . . . . . . Part Schematics Acquired . | . . . . . . . . . Parts Damaged . | . . . . . . . . . Bothacking | -11 -10 -10 -9 -9 -9 -8 -8 -7 ------------ Run | Scr Mat Min Mat Min Exi Min Mat Fac Used RIF Installer . | . . . . . . . . . Robots Hacked . | . . . . . . . . . Non-combat . | . . . . . . . . . Combat . | . . . . . . . . . Robot Hacks Applied . | . . . . . . . . . Relay Couplers Released . | . . . . . . . . . Robots Rewired . | . . . . . . . . . Allies Hacked . | . . . . . . . . . Hacks Repelled . | . . . . . . . . . Allies | -11 -10 -10 -9 -9 -9 -8 -8 -7 -------- Run | Scr Mat Min Mat Min Exi Min Mat Fac Total Allies . | . . . . . . . . . Largest Group . | . . . . . . . . . Highest-Rated Group . | . . . . . . . . . Highest-Rated Ally . | . . . . . . . . . Total Orders . | . . . . . . . . . Ally Attacks . | . . . . . . . . . Total Damage . | . . . . . . . . . Kills . | . . . . . . . . . Allies Corrupted . | . . . . . . . . . Allies Melted . | . . . . . . . . . Intel | -11 -10 -10 -9 -9 -9 -8 -8 -7 ------- Run | Scr Mat Min Mat Min Exi Min Mat Fac Robot Analysis Total . | . . . . . . . . . Derelict Logs Recovered . | . . . . . . . . . Drone Launches . | . . . . . . . . . Drone Recoveries . | . . . . . . . . . Exploration | -11 -10 -10 -9 -9 -9 -8 -8 -7 ------------- Run | Scr Mat Min Mat Min Exi Min Mat Fac Turns Passed 5192 | 14 1353 260 204 358 358 570 1174 901 Spaces Moved 2649 | 8 544 154 117 265 256 368 456 481 Core 8 | . . . . . . . . 8 Treads 430 | 5 383 . . . . . 42 . Legs 401 | 3 . . . . . . 87 311 Wheels 1648 | . 161 154 117 265 256 368 327 . Hover . | . . . . . . . . . Flight 162 | . . . . . . . . 162 Fastest Speed 35 | 120 130 130 95 95 140 95 110 35 Average Speed 151 | 145 192 130 102 100 140 114 192 148 Slowest Speed 660 | 160 360 130 110 140 140 140 660 210 Overloaded Moves . | . . . . . . . . . Propulsion Burnouts . | . . . . . . . . . Robots Hopped 3 | . . . . . . . . 3 Cave-ins Triggered . | . . . . . . . . . Exploration Rate (%) 43 | 2 82 26 14 47 69 90 42 20 Regions Visited 8 Branch Regions 4 Pre-discovered Areas 3 | . 2 1 . . . . . . Known Exits Taken . | . . . . . . . . . Unknown Exits Taken 8 | 1 1 1 1 1 1 1 1 . Scrap Searched 1 | . . . . . . 1 . . Spaces Dug 3 | . . . . . . . . 3 Terrain Destroyed 201 | . . . . 20 . 13 38 130 Melee 2 | . . . . . . . . 2 Projectile 1 | . . . . . . . . 1 AOE 198 | . . . . 20 . 13 38 127 Terrain Rammed . | . . . . . . . . . Walls Destroyed . | . . . . . . . . . Machines Disabled . | . . . . . . . . . Actions | -11 -10 -10 -9 -9 -9 -8 -8 -7 --------- Run | Scr Mat Min Mat Min Exi Min Mat Fac Total 3311 | 11 687 181 192 304 255 455 610 616 Wait 201 | . 30 3 45 6 . 42 16 59 Move 2635 | 7 543 153 116 264 255 367 455 475 Hop 3 | . . . . . . . . 3 Pick Up 55 | . 14 3 6 1 . 2 22 7 Fast Attach 26 | . 2 . 4 . . 4 13 3 Attach 40 | 2 2 . 3 . . 5 11 17 Detach 4 | 2 . . . . . 2 . . Swap 23 | . 5 . 4 4 . 2 3 5 Drop 33 | . 3 3 9 1 . . 12 5 Fire 280 | . 84 19 5 26 . 31 77 38 Melee 3 | . . . . . . . . 3 Ram 2 | . . . . 2 . . . . Kick 2 | . . . . . . . 1 1 Crush 4 | . 4 . . . . . . . Escape Stasis . | . . . . . . . . . Rewire . | . . . . . . . . . Trap . | . . . . . . . . . Miscellaneous . | . . . . . . . . . Route ------- -11/Scrapyard -10/Materials (discovered 2 exits: *Mat / *Min) -10/Mines -9/Materials -9/Mines -9/Exiles -8/Mines (discovered 2 exits: *Mat x2) -8/Materials -7/Factory (discovered 3 exits: *Fac / Low x2) History --------- Turn | Location | Event 1 | -11/Scrapyard | Discovered new exit (range 3) 15 | -11/Scrapyard | Entered Materials 255 | -10/Materials | Discovered new exit (range 5) 301 | -10/Materials | Build established: Mutant 617 | -10/Materials | Discovered new exit (range 16) 1102 | -10/Materials | Core integrity fell below 50% 1368 | -10/Materials | Entered Mines 1384 | -10/Mines | Discovered new exit (range 9) 1406 | -10/Mines | Met a Derelict shopkeep closing up shop 1520 | -10/Mines | Learned location of Storage (-9) 1543 | -10/Mines | Assembled infested the area 1548 | -10/Mines | Assisted by a Guerilla fighting off Assembled 1628 | -10/Mines | Entered Materials 1628 | -9/Materials | Evolved 2 slots: Propulsion x1, Utility x1 1704 | -9/Materials | Repaired Lgt. Treads 1792 | -9/Materials | Discovered new exit (range 7) 1832 | -9/Materials | Entered Mines 1948 | -9/Mines | Destroyed 7 combat bots 2032 | -9/Mines | Deemed a non-threat by the Exiles lab entrance 2032 | -9/Mines | Discovered new exit (range 5) 2062 | -9/Mines | Received a Rocket Launcher from a helpful Derelict 2190 | -9/Mines | Entered Exiles 2190 | -9/Exiles | Found Exiles lab abandoned 2536 | -9/Exiles | Discovered new exit (range 10) 2548 | -9/Exiles | Entered Mines 2844 | -8/Mines | Discovered new exit (range 8) 3105 | -8/Mines | Discovered new exit (range 3) 3118 | -8/Mines | Entered Materials 3118 | -8/Materials | Evolved 2 slots: Utility x2 3314 | -8/Materials | Lost 4 parts (1p2n1w) 3707 | -8/Materials | Core integrity fell below 50% 3752 | -8/Materials | Lost 10 parts (1p3n2u4w) 4266 | -8/Materials | Discovered new exit (range 3) 4292 | -8/Materials | Entered Factory 4292 | -7/Factory | Evolved 2 slots: Propulsion x1, Utility x1 4485 | -7/Factory | Destroyed 8 combat bots 4856 | -7/Factory | Discovered new exit (range 17) 4893 | -7/Factory | Identified exit to Factory 4986 | -7/Factory | Repaired Titanium Leg 5072 | -7/Factory | Cargo convoy interrupted 5092 | -7/Factory | First assault squad dispatched 5100 | -7/Factory | Core integrity fell below 50% 5106 | -7/Factory | System corruption reached 10% 5138 | -7/Factory | Lost 13 parts (2p6n2u3w) 5156 | -7/Factory | Core integrity fell below 20% 5173 | -7/Factory | Identified exit to Lower Caves 5173 | -7/Factory | Hacking Suite fried by hacking feedback 5193 | -7/Factory | Destroyed by G-50 Soldier with Heavy Laser Last Messages --------------- 05164_ Scanalyzer x3 05172_ >> Machine Analyzer network decryption results: 05172_ Terminal x1 05173_ Connecting with Terminal... >>Access(Branch) Found 2 branch access points: (81,147) Lower Caves (148,64) Lower Caves Map updated. Feedback: Hacking Suite fried. 05173_ ALERT: Suspicious activity at Terminal F008. Dispatching Investigation squad. 05182_ Penetrated by Slug. 05182_ K-01 Serf destroyed. 05182_ Slug penetrates Wall. 05183_ R-06 Scavenger collects Lgt. Ion Engine. 05185_ R-06 Scavenger inserts Adv. Terrain Scan Processor into recycling unit. 05187_ Identified Prc. Grenade Launcher. 05189_ Hacking Suite destroyed. Map ----- +----------------------------------------------------+ | # """ ########+## # """" # """" # | | # # # """" # """" # | | # + + """"?? """" # | | # "" # # ?????# # | | # "" ###/####### # ?????############+# | | # "T # #### # ?????#### # | | # "" # "" ###### ### ???????## "" "" !# | | # "" # """###### ### ???????## "" "" # | | # # S"##??## ##??????????? """ """ # | | ####### """##?### ###?######### """ """ # | | ####### """##?### ############# """ """ # | | ?????## ##### ##### ## # ? | | ?????## ##### * ##########"# | | ?????## ! ! + =%= | | ?????## ##### ! ############ | | ?????## """ ##### ##### ############ | | ?????## """ #######/#########+######????????## | | ?????## """ #### p # ##????"""? # | | ?????## #### """ p! # """ """ ##????"""???? | | ?????####+####### """ p # """ """ ##????"""???? | | ?????#### ####### """ # """ """ ##??????????? | | ???????## + # ##??????????? | | ???????########## p g ##??????????? | | ???????########## ""Y"" !!##??????????? | | ???????????????## """"" ] !!##??????????? | | ???????????????## @ ##########??????????? | | ???????????????####### # ##########??????????? | | ???????????????##############??????????????????? | | ????????????????????#######????????????????????? | | ???????????????????????????????????????????????? | | ???????????????????????????????????????????????? | | ???????????????????????????????????????????????? | | ???????????????????????????????????????????????? | | ???????????????????????????????????????????????? | | ???????????????????????????????????????????????? | | ???????????????????????????????????????????????? | | ???????????????????????????????????????????????? | | ???????????????????????????????????????????????? | | ???????????????????????????????????????????????? | | ???????????????????????????????????????????????? | | ???????????????????????????????????????????????? | | ???????????????????????????????????????????????? | | ???????????????????????????????????????????????? | | ???????????????????????????????????????????????? | | ???????????????????????????????????????????????? | | ???????????????????????????????????????????????? | | ???????????????????????????????????????????????? | | ???????????????????????????????????????????????? | | ???????????????????????????????????????????????? | | ???????????????????????????????????????????????? | +----------------------------------------------------+ Best States ------------- Heat Dissipation 64 Energy Generation 14 Energy Capacity 275 Matter Stores 300 Matter Capacity 300 Sight Range 18 Terrain Scan Density 10 Armor Coverage 600 Propulsion Shielding 66 Utility Shielding 66 Weapon Shielding 33 Melee Speed Boost 20 Evasion (%) 63 Targeting Accuracy 8 Recoil Reduction 2 Offensive Hacking 10 Defensive Hacking 10 Item Schematics ----------------- Huge Storage Unit | -10/Materials | Hacked Robot Schematics ------------------ None Fabricated ------------ Nothing Alien Tech Used ----------------- None Achievements -------------- None Challenges ------------ None Game ------ Seed GuidanceMasterSystem Manual? 0 Play Time 00:43:53 Cumulative 389.4 hours Start 2021.06.23 @ 17:12:34 End 2021.06.23 @ 17:57:10 Sessions 1 Manual Loads 0 Difficulty Rogue Special Mode None Game No. 371 Rogue 156 Adventurer 112 Explorer 103 Win Type - Total 27 Types 19/0/5/2/0/0/0/1/0 Lore% 85 Gallery% 91 Achievement% 74 Wizard Run 0 Options --------- ASCII 0 Keyboard 0 Movement Numpad Keybinds 0 Fullscreen 2 Font 18/TerminusBold Map View 76x50 Tactical HUD 1 Map Filters NONE Filters NONE Steam 1 RUN: 68b9ed99-319f-41ec-8ce9-805d2e851783